bitfinex/quotes_ETHUSD_20230405
["timestamp","ask_amount","ask_price","bid_price","bid_amount"]
[1680734180259,0.967,1906.9,1906.2,3.0]
[1680734180427,0.18355,1906.8,1906.2,3.0]
[1680734180623,0.59874126,1906.8,1906.2,3.0]
[1680734180828,0.41519126,1906.8,1906.2,3.0]
[1680734181066,0.87819126,1906.8,1906.2,3.0]
[1680734182562,0.88019126,1906.8,1906.2,3.0]
[1680734183270,0.88019126,1906.8,1906.3,0.31981828]
[1680734183453,0.90165935,1906.8,1906.3,0.31981828]
[1680734184336,1.08520935,1906.8,1906.3,0.31981828]
[1680734184537,0.09016594,1906.7,1906.3,0.31981828]
[1680734184853,0.02146809,1906.6,1906.3,0.31981828]
[1680734223073,5.368,1906.7,1906.3,0.31981828]
[1680734223276,5.368,1906.7,1906.3,0.39830011]
[1680734223587,0.006,1906.7,1906.3,0.86130011]
[1680734223756,5.3125,1906.9,1906.3,0.86130011]
[1680734223956,5.3185,1906.9,1906.3,0.86130011]
[1680734224563,5.3185,1906.9,1906.3,0.39830011]
[1680734230805,5.3185,1906.9,1906.5,0.464]
[1680734231036,5.3185,1906.9,1906.4,0.465]
[1680734231177,5.3185,1906.9,1906.4,0.55133001]
[1680734232999,5.3185,1906.9,1906.4,0.08633001]
[1680734233309,5.3185,1906.9,1906.5,0.24017054]
[1680734241921,5.3185,1906.9,1906.5,0.24017054]
[1680734249389,5.7815,1906.9,1906.5,0.24017054]
[1680734249706,5.96504,1906.9,1906.5,0.24017054]
[1680734249903,0.596504,1906.8,1906.5,0.24017054]
[1680734250320,0.596504,1906.8,1906.3,3.0]
[1680734250518,5.7815,1906.9,1906.3,3.0]
[1680734251241,5.7815,1906.9,1906.4,0.24056173]
[1680734252144,5.3185,1906.9,1906.4,0.24056173]
[1680734253051,5.33996809,1906.9,1906.4,0.24056173]
[1680734253427,5.33996809,1906.9,1906.4,0.3202274]
[1680734256630,6.16855767,1906.9,1906.4,0.3202274]
[1680734273811,0.465,1906.8,1906.4,0.3202274]
[1680734274475,0.461,1906.7,1906.4,0.3202274]
[1680734277310,3.10528255,1906.8,1906.4,0.3202274]
[1680734277817,3.12675064,1906.8,1906.4,0.3202274]
[1680734277999,0.31267506,1906.7,1906.4,0.3202274]
[1680734278406,2.86428255,1906.6,1906.4,0.3202274]
[1680734278913,19.37528255,1906.6,1906.4,0.3202274]
[1680734279817,16.511,1906.6,1906.4,0.3202274]
[1680734282855,0.008,1906.7,1906.4,0.3202274]
[1680734283150,15.9096,1906.8,1906.4,0.3202274]
[1680734283296,1.59096,1906.7,1906.4,0.3202274]
[1680734283500,15.9176,1906.8,1906.4,0.3202274]
[1680734283704,15.9156,1906.8,1906.4,0.3202274]
[1680734295626,0.006,1906.8,1906.4,0.7852274]
[1680734295837,10.81696809,1907.0,1906.4,0.7852274]
[1680734296044,10.82296809,1907.0,1906.4,0.7852274]
[1680734296206,10.82296809,1907.0,1906.5,0.07852274]
[1680734297308,10.82296809,1907.0,1906.6,0.36968013]
[1680734297508,10.82296809,1907.0,1906.5,0.07852274]
[1680734298546,0.02746809,1907.0,1906.5,0.07852274]
[1680734298762,5.4213,1907.1,1906.7,0.465]
[1680734298953,5.4213,1907.1,1906.6,0.462]
[1680734299105,5.4213,1907.1,1906.6,0.51605227]
[1680734300008,5.4213,1907.1,1906.6,0.05405227]
[1680734301411,5.4213,1907.1,1906.7,0.36112787]
[1680734303340,0.006,1907.1,1906.7,0.36112787]
[1680734303652,6.08713116,1907.3,1906.7,0.36112787]
[1680734303827,6.08713116,1907.3,1906.7,0.44904588]
[1680734304345,5.55946809,1907.3,1906.7,0.44904588]
[1680734304554,6.10859925,1907.3,1906.7,0.44904588]
[1680734305753,5.55946809,1907.3,1906.7,0.44904588]
[1680734306553,6.08843246,1907.3,1906.7,0.44904588]
[1680734306858,5.55946809,1907.3,1906.7,0.44904588]
[1680734312133,5.55946809,1907.3,1906.7,3.54532843]
[1680734312336,0.006,1907.3,1907.0,0.464]
[1680734312657,16.3483,1907.5,1907.0,0.464]
[1680734312858,5.8102,1907.5,1907.0,0.464]
[1680734314828,5.8102,1907.5,1906.9,0.465]
[1680734315042,5.8102,1907.5,1906.9,1.30279154]
[1680734316466,5.8102,1907.5,1907.0,0.35320811]
[1680734320462,5.8102,1907.5,1906.9,0.83779154]
[1680734322093,5.8102,1907.5,1907.0,0.463]
[1680734322246,5.8102,1907.5,1907.1,0.465]
[1680734322247,0.006,1907.5,1907.1,0.465]
[1680734322443,0.006,1907.6,1907.2,0.461]
[1680734322683,0.006,1907.6,1907.3,0.463]
[1680734322884,0.0195074,1907.7,1907.5,0.464]
[1680734323394,0.0195074,1907.7,1907.4,0.465]
[1680734324375,0.0195074,1907.7,1907.5,0.29663034]
[1680734324689,0.0195074,1907.7,1907.5,0.37279337]
[1680734329595,0.0195074,1907.7,1907.5,0.29663034]
[1680734333687,0.0155074,1907.7,1907.5,0.29663034]
[1680734333994,0.0195074,1907.7,1907.5,0.29663034]
[1680734347466,0.0195074,1907.7,1907.5,4.94963034]
[1680734348681,0.0194911,1907.7,1907.5,4.94963034]
[1680734355903,0.0194911,1907.7,1907.5,5.44489337]
[1680734356090,0.0194911,1907.7,1907.5,5.44789337]
[1680734362115,0.0134911,1907.7,1907.6,0.463]
[1680734362312,0.0134911,1907.7,1907.6,6.09728255]
[1680734362512,0.0134911,1907.7,1907.6,6.10028255]
[1680734362823,0.0134911,1907.7,1907.6,8.72247014]
[1680734366340,0.0134911,1907.7,1907.6,9.00310463]
[1680734374812,0.0134911,1907.7,1907.6,6.36882208]
[1680734375013,0.0134911,1907.7,1907.6,5.90582208]
[1680734375802,0.0134911,1907.7,1907.6,0.28363449]
[1680734376010,0.0134911,1907.7,1907.6,0.28063449]
[1680734380019,0.0134911,1907.7,1907.6,3.74163449]
[1680734380843,0.0134911,1907.7,1907.6,3.28063449]
[1680734388048,0.0134911,1907.7,1907.6,0.28063449]
[1680734389722,0.4784911,1907.7,1907.6,0.28063449]
[1680734390744,0.2434911,1907.7,1907.6,0.28063449]
[1680734390947,0.2494911,1907.7,1907.6,0.28063449]
[1680734391248,0.32308702,1907.7,1907.6,0.28063449]
[1680734400436,0.0194911,1907.7,1907.6,0.28063449]
[1680734400837,0.0134911,1907.7,1907.6,0.28063449]
[1680734409573,0.0134911,1907.7,1907.6,0.38789717]
[1680734410176,0.0134685,1907.7,1907.6,0.38789717]
[1680734414501,0.0134685,1907.7,1907.6,0.73365348]
[1680734427893,0.0134685,1907.7,1907.6,1.26186683]
[1680734428095,0.0134685,1907.7,1907.6,3.89614938]
[1680734428301,0.0134685,1907.7,1907.6,7.36014938]
[1680734428466,0.0134685,1907.7,1907.6,7.36314938]
[1680734428664,0.0134685,1907.7,1907.6,21.61814938]
[1680734429369,0.0134685,1907.7,1907.6,22.36126638]
[1680734432620,0.0134685,1907.7,1907.6,21.91424739]
[1680734432769,0.0134685,1907.7,1907.6,21.17113039]
[1680734432970,0.0134685,1907.7,1907.6,21.16513039]
[1680734438727,0.0134685,1907.7,1907.6,21.63013039]
[1680734442020,0.0134685,1907.7,1907.6,21.16613039]
[1680734448698,0.0134685,1907.7,1907.6,21.62813039]
[1680734450131,0.0134685,1907.7,1907.6,21.16313039]
[1680734450434,0.004,1908.4,1907.8,0.998]
[1680734450636,0.11200001,1908.6,1908.1,0.463]
[1680734450637,0.11000001,1908.6,1908.1,0.463]
[1680734450941,0.11600001,1908.6,1908.1,2.63428255]
[1680734451099,0.11600001,1908.6,1908.2,3.0]
[1680734451302,0.11600001,1908.6,1908.2,3.81096539]
[1680734451605,0.11600001,1908.6,1908.2,8.25642826]
[1680734451824,0.11600001,1908.6,1908.2,8.25942826]
[1680734452640,0.11600001,1908.6,1908.3,2.63428255]
[1680734452800,0.11000001,1908.6,1908.3,2.63428255]
[1680734453132,0.11000001,1908.6,1908.3,3.72365363]
[1680734453507,0.11000001,1908.6,1908.3,1.08937108]
[1680734453724,0.11000001,1908.6,1908.2,8.25942826]
[1680734453913,0.11000001,1908.6,1908.2,7.696]
[1680734454528,0.11000001,1908.6,1908.3,0.24488259]
[1680734484784,0.461,1908.5,1908.3,0.24488259]
[1680734485567,0.7711,1908.4,1908.3,0.24488259]
[1680734486155,0.79256809,1908.4,1908.3,0.24488259]
[1680734486350,0.79256809,1908.4,1908.2,4.693]
[1680734487390,0.79256809,1908.4,1908.3,0.26290354]
[1680734488377,0.79256809,1908.4,1908.2,4.696]
[1680734488584,0.79256809,1908.4,1908.2,4.693]
[1680734489095,0.32756809,1908.4,1908.2,4.693]
[1680734489390,0.006,1908.4,1908.3,0.26290354]
[1680734490460,0.006,1908.4,1908.2,4.696]
[1680734490661,0.006,1908.4,1908.2,4.693]
[1680734490861,0.006,1908.5,1908.2,5.154]
[1680734491158,0.006,1908.5,1908.3,3.0]
[1680734491382,0.11600001,1908.6,1908.4,0.3]
[1680734492184,0.11000001,1908.6,1908.5,4.435]
[1680734492490,0.11600001,1908.6,1908.5,4.435]
[1680734495476,0.11600001,1908.6,1908.5,4.69635604]
[1680734500300,0.11000001,1908.6,1908.5,4.69635604]
[1680734500504,0.11000001,1908.6,1908.5,5.16629164]
[1680734500708,0.11000001,1908.6,1908.5,5.16929164]
[1680734501274,0.11000001,1908.6,1908.5,4.69935604]
[1680734501495,0.11600001,1908.6,1908.5,4.69635604]
[1680734510217,0.11000001,1908.6,1908.5,4.69635604]
[1680734510434,0.11600001,1908.6,1908.5,4.69635604]
[1680734510616,0.11000001,1908.6,1908.5,4.69635604]
[1680734511508,0.11600001,1908.6,1908.5,4.69635604]
[1680734511709,0.11000001,1908.6,1908.5,4.69635604]
[1680734512020,0.11600001,1908.6,1908.5,4.69635604]
[1680734512231,0.11000001,1908.6,1908.5,4.69635604]
[1680734517711,0.11000001,1908.6,1908.5,4.69669396]
[1680734517907,0.11000001,1908.6,1908.5,4.69269396]
[1680734525534,0.11000001,1908.6,1908.5,7.29269396]
[1680734525739,0.11000001,1908.6,1908.5,7.29569396]
[1680734541832,0.11000001,1908.6,1908.5,8.02526336]
[1680734545991,0.11000001,1908.6,1908.5,7.29569396]
[1680734550132,0.11000001,1908.6,1908.5,7.30169396]
[1680734550330,0.11000001,1908.6,1908.5,7.29569396]
[1680734550556,1.94539314,1908.6,1908.5,7.29569396]
[1680734550711,6.1825036,1908.6,1908.5,7.29569396]
[1680734551029,7.36836135,1908.6,1908.5,7.29569396]
[1680734551261,7.0446646,1908.6,1908.5,7.29569396]
[1680734551554,7.0446646,1908.6,1908.5,7.03433792]
[1680734552301,6.5446646,1908.6,1908.5,7.03433792]
[1680734553223,6.5836646,1908.6,1908.5,7.03433792]
[1680734555664,6.5836646,1908.6,1908.5,7.3478325]
[1680734556347,5.53453344,1908.6,1908.5,7.3478325]
[1680734558442,4.62514031,1908.6,1908.5,7.3478325]
[1680734558644,5.53453056,1908.6,1908.5,7.3478325]
[1680734558863,5.53453553,1908.6,1908.5,7.3478325]
[1680734559428,5.53453546,1908.6,1908.5,7.3478325]
[1680734559633,4.62514031,1908.6,1908.5,7.3478325]
[1680734564479,5.12514031,1908.6,1908.5,7.3478325]
[1680734565453,6.03454281,1908.6,1908.5,7.3478325]
[1680734565646,5.12514031,1908.6,1908.5,7.3478325]
[1680734565879,6.03456147,1908.6,1908.5,7.3478325]
[1680734566035,5.12514031,1908.6,1908.5,7.3478325]
[1680734566738,6.03455818,1908.6,1908.5,7.3478325]
[1680734566980,5.12514031,1908.6,1908.5,7.3478325]
[1680734568581,4.62514031,1908.6,1908.5,7.3478325]
[1680734570272,4.16014031,1908.6,1908.5,7.3478325]
[1680734575959,4.15414031,1908.6,1908.5,7.3538325]
[1680734576188,4.16014031,1908.6,1908.5,7.3478325]
[1680734585092,5.06952793,1908.6,1908.5,7.3478325]
[1680734585389,5.06954431,1908.6,1908.5,7.3478325]
[1680734588580,5.06952412,1908.6,1908.5,7.3478325]
[1680734588788,5.0695293,1908.6,1908.5,7.3478325]
[1680734589153,5.61866046,1908.6,1908.5,7.3478325]
[1680734589355,5.0695293,1908.6,1908.5,7.3478325]
[1680734589556,5.61866046,1908.6,1908.5,7.3478325]
[1680734589961,5.0695293,1908.6,1908.5,7.3478325]
[1680734590560,5.61866046,1908.6,1908.5,7.3478325]
[1680734591464,2.98437791,1908.6,1908.5,7.3478325]
[1680734591682,1.80452016,1908.6,1908.5,7.3478325]
[1680734592289,1.025389,1908.6,1908.5,7.3478325]
[1680734592470,1.57452016,1908.6,1908.5,7.3478325]
[1680734601399,2.39821691,1908.6,1908.5,7.3478325]
[1680734601601,1.57452016,1908.6,1908.5,7.3478325]
[1680734602682,1.025389,1908.6,1908.5,8.54661575]
[1680734603020,0.11600001,1908.6,1908.5,8.54661575]
[1680734603222,0.11000001,1908.6,1908.5,8.54661575]
[1680734607729,0.11000001,1908.6,1908.5,9.01161575]
[1680734610961,0.11000001,1908.6,1908.5,8.54761575]
[1680734630277,0.11000001,1908.6,1908.5,8.08261575]
[1680734639513,0.11000001,1908.6,1908.5,7.76912117]
[1680734646835,0.11000001,1908.6,1908.5,8.23412117]
[1680734647612,0.11000001,1908.6,1908.5,8.23612117]
[1680734647828,0.11000001,1908.6,1908.5,8.23412117]
[1680734648033,0.11000001,1908.6,1908.5,11.23412117]
[1680734655029,0.11000001,1908.6,1908.5,10.76912117]
[1680734655430,0.11000001,1908.6,1908.5,10.77512117]
[1680734658248,0.11000001,1908.6,1908.5,13.40940372]
[1680734658446,0.11000001,1908.6,1908.5,13.87440372]
[1680734661165,0.11000001,1908.6,1908.5,13.40940372]
[1680734687919,0.11000001,1908.6,1908.5,13.87240372]
[1680734692452,0.11000001,1908.6,1908.5,14.33740372]
[1680734692622,0.11000001,1908.6,1908.5,14.33140372]
[1680734692826,0.11000001,1908.6,1908.5,14.33740372]
[1680734693014,0.11000001,1908.6,1908.5,13.87440372]
[1680734693357,0.11000001,1908.6,1908.5,14.40740372]
[1680734695720,0.11000001,1908.6,1908.5,13.40940372]
[1680734695926,0.11000001,1908.6,1908.5,14.40740372]
[1680734696121,0.11000001,1908.6,1908.5,14.87040372]
[1680734698225,0.11000001,1908.6,1908.5,14.40740372]
[1680734705248,0.11000001,1908.6,1908.5,11.77312117]
[1680734706676,0.11000001,1908.6,1908.5,10.04033792]
[1680734706875,0.11000001,1908.6,1908.5,7.04033792]
[1680734708056,0.11000001,1908.6,1908.5,7.03433792]
[1680734715561,0.11000001,1908.6,1908.5,10.03433792]
[1680734717986,0.57500001,1908.6,1908.5,7.03433792]
[1680734718187,1.09550001,1908.6,1908.5,7.03433792]
[1680734718388,1.50888001,1908.6,1908.5,7.03433792]
[1680734718568,1.32550001,1908.6,1908.5,7.03433792]
[1680734720551,0.86050001,1908.6,1908.5,7.03433792]
[1680734731585,0.86050001,1908.6,1908.5,7.03433792]
[1680734733211,0.39750001,1908.6,1908.5,7.03433792]
[1680734733713,0.11000001,1908.6,1908.5,7.03433792]
[1680734749113,0.11000001,1908.6,1908.5,10.03433792]
[1680734749633,0.11000001,1908.6,1908.5,12.66862047]
[1680734750198,0.11000001,1908.6,1908.5,10.03433792]
[1680734766213,0.11000001,1908.6,1908.5,10.49533792]
[1680734766419,0.11000001,1908.6,1908.5,12.03878171]
[1680734772628,0.11000001,1908.6,1908.5,9.03878171]
[1680734775170,0.11000001,1908.6,1908.5,8.57778171]
[1680734779755,0.11000001,1908.6,1908.5,9.04178171]
[1680734780076,0.11000001,1908.6,1908.5,14.67606426]
[1680734789584,0.11000001,1908.6,1908.5,10.24472634]
[1680734791178,0.11000001,1908.6,1908.5,9.78072634]
[1680734791381,0.11000001,1908.6,1908.5,8.23728255]
[1680734794384,0.11000001,1908.6,1908.5,5.603]
[1680734816834,0.11000001,1908.6,1908.5,3.003]
[1680734816999,0.11000001,1908.6,1908.4,3.009]
[1680734817201,0.11000001,1908.6,1908.5,3.0]
[1680734817623,0.11000001,1908.6,1908.4,3.009]
[1680734817795,0.11000001,1908.6,1908.4,4.23236]
[1680734824605,0.11000001,1908.6,1908.4,3.006]
[1680734824811,0.11000001,1908.6,1908.3,0.006]
[1680734825110,0.11000001,1908.6,1908.2,3.006]
[1680734825614,0.11000001,1908.6,1908.2,3.0]
[1680734825813,0.57500001,1908.6,1908.2,3.0]
[1680734826024,0.63250001,1908.6,1908.2,3.0]
[1680734828727,0.16750001,1908.6,1908.2,3.0]
[1680734844971,0.16750001,1908.6,1908.2,5.6]
[1680734845145,0.16750001,1908.6,1908.2,5.603]
[1680734850284,0.11000001,1908.6,1908.2,5.603]
[1680734850661,0.11000001,1908.6,1908.2,6.067]
[1680734851062,0.11000001,1908.6,1908.2,5.603]
[1680734851782,0.11000001,1908.6,1908.2,5.609]
[1680734851955,0.11000001,1908.6,1908.2,5.603]
[1680734852285,0.11000001,1908.6,1908.3,0.5603]
[1680734856192,0.11000001,1908.6,1908.4,2.442]
[1680734871376,0.11000001,1908.6,1908.4,5.07628255]
[1680734871594,0.11000001,1908.6,1908.4,5.07928255]
[1680734873196,0.11000001,1908.6,1908.4,2.445]
[1680734873506,0.11000001,1908.6,1908.4,2.442]
[1680734904856,20.11000001,1908.6,1908.4,2.442]
[1680734907521,2.011,1908.5,1908.2,1.08354448]
[1680734907717,3.241,1908.3,1908.2,1.07654448]
[1680734907920,1.0,1908.1,1907.7,0.002]
[1680734908147,0.465,1907.8,1907.5,0.01048]
[1680734908329,0.23,1907.7,1907.5,0.01048]
[1680734908742,0.465,1907.6,1907.5,0.01048]
[1680734909454,4.51275255,1907.6,1907.5,0.01048]
[1680734909750,15.6024278,1907.6,1907.5,0.72798638]
[1680734909926,16.4343778,1907.6,1907.5,0.72798638]
[1680734910542,16.4343778,1907.6,1907.5,0.01048]
[1680734910757,22.0758778,1907.6,1907.5,0.01048]
[1680734911475,22.09734589,1907.6,1907.5,0.01048]
[1680734917476,22.09734589,1907.6,1907.5,2.61048]
[1680734917662,6.94184589,1907.6,1907.5,2.61048]
[1680734918359,6.44184589,1907.6,1907.5,2.61048]
[1680734918738,6.44184589,1907.6,1907.5,0.01048]
[1680734919063,11.91714589,1907.6,1907.5,0.01048]
[1680734919564,11.36672589,1907.6,1907.5,0.01048]
[1680734921133,10.90172589,1907.6,1907.5,0.01048]
[1680734923952,6.246,1907.7,1907.5,0.01048]
[1680734923953,0.002,1907.7,1907.5,0.01048]
[1680734924156,13.6626,1907.9,1907.5,0.01048]
[1680734924355,16.29688255,1907.9,1907.5,0.01048]
[1680734924550,1.62968826,1907.8,1907.5,0.01048]
[1680734925644,1.62968826,1907.8,1907.6,0.71594345]
[1680734927861,1.81314826,1907.8,1907.6,0.71594345]
[1680734930665,19.28405655,1907.6,1907.5,0.01048]
[1680734972636,22.43505655,1907.6,1907.5,0.01048]
[1680734972838,27.53704475,1907.6,1907.5,0.01048]
[1680734975030,37.99354475,1907.6,1907.5,0.01048]
[1680734976406,38.01501284,1907.6,1907.5,0.01048]
[1680734993005,38.01501284,1907.6,1907.5,0.02096]
[1680734995417,29.74055655,1907.6,1907.5,0.02096]
[1680735026283,19.28405655,1907.6,1907.5,0.02096]
[1680735032603,19.28405655,1907.6,1907.5,0.47594645]
[1680735033728,19.28405655,1907.6,1907.5,0.488]
[1680735046098,19.28405655,1907.6,1907.5,0.952]
[1680735046304,19.28405655,1907.6,1907.5,1.0472]
[1680735051326,19.28405655,1907.6,1907.5,0.5832]
[1680735052614,19.28405655,1907.6,1907.5,0.5582815]
[1680735053541,19.28405655,1907.6,1907.5,0.11616]
[1680735057243,19.28405655,1907.6,1907.5,0.02096]
[1680735057655,19.28405655,1907.6,1907.5,0.33138514]
[1680735062241,19.28405655,1907.6,1907.5,0.79438514]
[1680735064655,19.28405655,1907.6,1907.5,0.33138514]
[1680735066051,19.28405655,1907.6,1907.5,0.79238514]
[1680735066856,19.28405655,1907.6,1907.5,3.42666769]
[1680735067059,19.28405655,1907.6,1907.5,2.97166769]
[1680735080790,19.28405655,1907.6,1907.5,0.33738514]
[1680735080951,19.28405655,1907.6,1907.5,0.33138514]
[1680735131068,24.93755655,1907.6,1907.5,0.33138514]
[1680735131261,27.4315122,1907.6,1907.5,0.33138514]
[1680735143413,10.64412907,1907.6,1907.5,3.42866769]
[1680735143623,4.56470561,1907.6,1907.5,6.89266769]
[1680735143955,0.008,1907.7,1907.6,0.5]
[1680735144098,0.54900407,1908.5,1907.7,0.998]
[1680735144298,0.65900408,1908.6,1908.2,0.465]
[1680735144627,0.65900408,1908.6,1908.3,0.010481]
[1680735144794,0.11600001,1908.6,1908.3,0.010481]
[1680735145543,0.11600001,1908.6,1908.4,1.363]
[1680735145745,0.11600001,1908.6,1908.5,0.010479]
[1680735146109,0.11000001,1908.6,1908.5,0.010479]
[1680735147111,0.11000001,1908.6,1908.5,1.270479]
[1680735148748,0.11000001,1908.6,1908.5,1.56915585]
[1680735170464,0.11000001,1908.6,1908.5,2.03015585]
[1680735175197,0.11000001,1908.6,1908.5,1.56915585]
[1680735184235,0.11000001,1908.6,1908.5,4.6684384]
[1680735188814,0.08375207,1908.6,1908.5,4.6684384]
[1680735189701,0.04512239,1908.6,1908.5,4.75605834]
[1680735189908,0.04512239,1908.6,1908.5,7.75605834]
[1680735190107,0.04512239,1908.6,1908.5,7.75905834]
[1680735191715,0.11000001,1908.8,1908.5,7.82883127]
[1680735192042,0.06000001,1908.8,1908.7,0.465]
[1680735192345,0.06000001,1908.8,1908.7,3.10976055]
[1680735192840,0.06000001,1908.8,1908.7,4.37376055]
[1680735195611,0.06000001,1908.8,1908.7,4.79279667]
[1680735197615,0.06000001,1908.8,1908.7,3.06379667]
[1680735198250,0.06000001,1908.8,1908.7,3.52579667]
[1680735199857,0.06000001,1908.8,1908.7,3.8370279]
[1680735201370,0.06000001,1908.8,1908.7,3.3750279]
[1680735207108,0.06000001,1908.8,1908.7,6.8400279]
[1680735207308,0.06000001,1908.8,1908.7,6.8490279]
[1680735214143,0.06000001,1908.8,1908.7,6.3840279]
[1680735218220,0.06000001,1908.8,1908.7,6.3840279]
[1680735236003,0.06000001,1908.8,1908.7,6.8490279]
[1680735236568,0.11000001,1908.9,1908.7,6.8470279]
[1680735236796,0.11000001,1908.9,1908.8,6.09528255]
[1680735237085,0.11000001,1908.9,1908.8,6.10876055]
[1680735248500,0.11000001,1908.9,1908.8,8.06256148]
[1680735249097,0.11000001,1908.9,1908.8,7.60156148]
[1680735250316,0.11000001,1908.9,1908.8,6.34176055]
[1680735251954,0.11000001,1908.9,1908.8,6.85782642]
[1680735254045,0.11000001,1910.0,1909.5,2.63428255]
[1680735254225,0.11000001,1910.0,1909.9,4.56028255]
[1680735254569,0.11000001,1910.0,1909.9,7.57675455]
[1680735254747,0.11000001,1910.0,1909.9,7.84155548]
[1680735254911,0.11000001,1910.0,1909.9,16.76773901]
[1680735255108,0.11000001,1910.1,1910.0,0.5]
[1680735255308,0.11000001,1910.8,1910.7,2.63428255]
[1680735255548,0.11000001,1910.8,1910.7,6.80374955]
[1680735255743,0.11000001,1910.8,1910.7,6.57674955]
[1680735256134,0.11000001,1910.8,1910.7,6.11274955]
[1680735256335,0.11000001,1910.8,1910.7,5.64774955]
[1680735257619,0.11000001,1910.8,1910.7,6.11174955]
[1680735257918,0.11000001,1910.8,1910.7,6.42474955]
[1680735258500,0.11000001,1910.8,1910.7,6.97174955]
[1680735259683,0.11000001,1910.8,1910.7,7.50752788]
[1680735260085,0.11000001,1910.8,1910.7,6.96052788]
[1680735261263,0.11000001,1910.8,1910.7,7.95852788]
[1680735261972,0.11000001,1910.8,1910.7,8.8259264]
[1680735262454,0.11000001,1910.8,1910.7,7.95852788]
[1680735263649,0.006,1911.6,1910.8,0.11]
[1680735263957,1.0,1912.6,1911.7,0.998]
[1680735263958,0.002,1912.6,1911.7,0.998]
[1680735264153,0.01185133,1912.7,1911.9,3.18128255]
[1680735264154,0.00585133,1912.7,1911.9,3.18128255]
[1680735264358,0.00585133,1912.7,1911.9,3.42174355]
[1680735264580,0.00585133,1912.7,1911.9,6.42174355]
[1680735264799,0.00585133,1912.7,1911.9,6.42474355]
[1680735265985,0.00585133,1912.7,1911.9,5.87774355]
[1680735266885,0.00585133,1912.7,1911.9,6.42074355]
[1680735267083,1.00585133,1912.7,1911.9,6.19074355]
[1680735267260,0.02146809,1912.3,1911.9,2.64774355]
[1680735267463,0.542,1912.2,1911.9,2.64474355]
[1680735267890,0.02146809,1912.1,1911.9,2.64474355]
[1680735268101,0.02146809,1912.1,1911.9,0.010461]
[1680735268102,0.65700001,1912.0,1911.9,0.010461]
[1680735268261,0.72484682,1912.0,1911.9,0.010461]
[1680735268723,1.22484682,1912.0,1911.9,0.010461]
[1680735269092,0.5,1911.9,1910.9,0.006]
[1680735269305,0.547,1911.7,1911.0,2.64474255]
[1680735269502,0.547,1911.7,1911.0,2.65074255]
[1680735269730,0.0547,1911.6,1911.0,2.65074255]
[1680735270814,0.02146809,1911.7,1911.0,2.64474255]
[1680735271796,0.02146809,1911.7,1911.1,3.0]
[1680735272016,0.02146809,1911.7,1911.2,2.64474755]
[1680735272330,0.02146809,1911.7,1911.2,2.65074755]
[1680735272712,0.02146809,1911.7,1911.3,3.0]
[1680735272915,0.02146809,1911.7,1911.4,2.64474655]
[1680735272916,0.1783149,1911.7,1911.4,2.64474655]
[1680735274715,0.1783149,1911.7,1911.5,3.924]
[1680735274910,0.1783149,1911.7,1911.6,0.010462]
[1680735276921,0.6783149,1911.7,1911.6,0.010462]
[1680735277614,0.1783149,1911.7,1911.6,0.010462]
[1680735277820,0.15684681,1911.7,1911.6,0.010462]
[1680735280489,0.70384681,1911.7,1911.6,0.010462]
[1680735280952,1.20384681,1911.7,1911.6,0.010462]
[1680735281329,0.70384681,1911.7,1911.6,0.010462]
[1680735284349,1.0,1911.8,1911.6,0.010462]
[1680735285636,1.547,1911.8,1911.6,0.010462]
[1680735289269,1.499,1911.8,1911.6,0.010462]
[1680735289469,0.952,1911.8,1911.6,0.010462]
[1680735296524,0.02146809,1911.7,1911.6,0.010462]
[1680735296711,1.1841229,1911.7,1911.6,0.010462]
[1680735300156,1.3672029,1911.7,1911.6,0.010462]
[1680735300306,3.42040084,1911.7,1911.6,0.010462]
[1680735301445,3.69509352,1911.7,1911.6,0.010462]
[1680735301608,3.70109352,1911.7,1911.6,0.010462]
[1680735305769,6.14627,1911.6,1911.5,0.000462]
[1680735305951,28.95460203,1911.6,1911.5,0.000462]
[1680735306268,30.31658806,1911.6,1911.5,0.000462]
[1680735306576,5.99030551,1911.6,1911.5,1.172]
[1680735306747,0.002,1911.7,1911.5,5.35128255]
[1680735306937,0.11600001,1912.0,1911.6,5.63428255]
[1680735307261,0.11600001,1912.0,1911.7,1.0]
[1680735307565,0.11600001,1912.0,1911.7,4.936]
[1680735308146,0.11000001,1912.0,1911.7,4.942]
[1680735308346,0.11000001,1912.0,1911.7,4.936]
[1680735309733,0.11000001,1912.0,1911.7,3.936]
[1680735309937,0.65700001,1912.0,1911.7,3.936]
[1680735310193,0.08716809,1911.9,1911.7,3.936]
[1680735310670,0.58716809,1911.9,1911.7,3.936]
[1680735311032,0.08716809,1911.9,1911.7,3.936]
[1680735313743,0.547,1911.8,1911.7,3.936]
[1680735313960,0.5469539,1911.8,1911.5,0.009]
[1680735314147,11.59258434,1911.8,1911.7,4.13130461]
[1680735314340,1.46088434,1911.8,1911.7,4.13130461]
[1680735314550,1.45488434,1911.8,1911.7,4.13130461]
[1680735314946,0.64012199,1911.9,1911.7,4.13130461]
[1680735315552,0.63412199,1911.9,1911.7,4.13130461]
[1680735315743,0.56842199,1911.9,1911.7,4.13130461]
[1680735315942,0.02146809,1911.9,1911.7,4.13130461]
[1680735316541,0.56842199,1911.9,1911.7,4.13130461]
[1680735317565,1.48338476,1912.0,1911.7,4.13130461]
[1680735317770,0.66295391,1912.0,1911.7,4.13130461]
[1680735318811,0.65695391,1912.0,1911.7,4.13130461]
[1680735319113,2.3852346,1912.0,1911.7,4.13130461]
[1680735319316,0.90784984,1911.9,1911.7,4.13130461]
[1680735319493,1.45480374,1911.9,1911.7,4.13130461]
[1680735319684,0.5469539,1911.9,1911.7,4.13130461]
[1680735319885,2.39124709,1912.0,1911.8,2.63428255]
[1680735320110,0.66295391,1912.0,1911.8,2.63428255]
[1680735320278,0.90785277,1911.9,1911.8,2.63428255]
[1680735320483,0.65695391,1912.0,1911.9,4.004]
[1680735320687,1.56480475,1912.0,1911.9,4.004]
[1680735320903,1.57080475,1912.0,1911.9,4.004]
[1680735321982,1.56480475,1912.0,1911.9,4.004]
[1680735324911,1.01785085,1912.0,1911.9,4.004]
[1680735325525,1.80392831,1912.0,1911.9,4.004]
[1680735327888,1.80992831,1912.0,1911.9,4.004]
[1680735328318,1.80392831,1912.0,1911.9,4.004]
[1680735333003,1.80992831,1912.0,1911.9,4.004]
[1680735333204,1.80392831,1912.0,1911.9,4.004]
[1680735334946,1.75392831,1912.0,1911.9,4.004]
[1680735336439,1.51480475,1912.0,1911.9,4.004]
[1680735343721,0.88043086,1912.0,1911.9,4.004]